[Event "Sunway Sitges Chess Festival"]
[Date "2024.12.21"]
[White "Ilkhomi, Jaloliddin"]
[Black "Abergel, Thal"]
[WhiteElo "2278"]
[BlackElo "2411"]
[Round "9.25"]
[Result "1-0"]
[TimeControl "40/5400+30:1800+30"]

1. Nf3 {[%clk 1:30:17]} 1... d5 {[%clk 1:30:55]} 2. c4 {[%clk 1:30:38]} 2... e6
{[%clk 1:30:59]} 3. g3 {[%clk 1:31:03]} 3... Nf6 {[%clk 1:31:18]} 4. Bg2 {[%clk
1:31:28]} 4... Be7 {[%clk 1:31:42]} 5. O-O {[%clk 1:31:53]} 5... O-O {[%clk
1:31:59]} 6. d4 {[%clk 1:32:18]} 6... c6 {[%clk 1:32:23]} 7. Qc2 {[%clk
1:32:14]} 7... b6 {[%clk 1:32:42]} 8. Nbd2 {[%clk 1:32:39]} 8... Na6 {[%clk
1:29:35]} 9. a3 {[%clk 1:31:20]} 9... c5 {[%clk 1:29:11]} 10. dxc5 {[%clk
1:29:13]} 10... bxc5 {[%clk 1:26:44]} 11. e4 {[%clk 1:28:34]} 11... Bb7 {[%clk
1:25:40]} 12. exd5 {[%clk 1:21:52]} 12... exd5 {[%clk 1:26:07]} 13. cxd5 {[%clk
1:22:05]} 13... Qxd5 {[%clk 1:23:22]} 14. Nh4 {[%clk 1:18:05]} 14... Qd7 {[%clk
1:23:48]} 15. Bxb7 {[%clk 1:17:06]} 15... Qxb7 {[%clk 1:24:15]} 16. Nf5 {[%clk
1:17:20]} 16... Rfe8 {[%clk 1:23:10]} 17. Nc4 {[%clk 1:15:32]} 17... Qc6 {[%clk
1:16:05]} 18. Nxe7+ {[%clk 1:05:36]} 18... Rxe7 {[%clk 1:16:28]} 19. Bg5 {[%clk
1:05:41]} 19... h6 {[%clk 1:10:11]} 20. Bxf6 {[%clk 1:04:28]} 20... Qxf6 {[%clk
1:10:34]} 21. Rfd1 {[%clk 0:54:19]} 21... Rae8 {[%clk 1:06:37]} 22. Ne3 {[%clk
0:51:54]} 22... Qf3 {[%clk 1:01:48]} 23. Rd6 {[%clk 0:49:58]} 23... Qb7 {[%clk
0:57:47]} 24. Rad1 {[%clk 0:49:06]} 24... Nc7 {[%clk 0:57:32]} 25. Qxc5 {[%clk
0:48:22]} 25... Qxb2 {[%clk 0:57:42]} 26. Rd8 {[%clk 0:48:34]} 26... Qe5 {[%clk
0:56:14]} 27. Qxa7 {[%clk 0:41:52]} 27... Rxd8 {[%clk 0:55:36]} 28. Rxd8+ {[%clk
0:42:20]} 28... Kh7 {[%clk 0:55:58]} 29. Qd4 {[%clk 0:41:17]} 29... Qxd4 {[%clk
0:48:57]} 30. Rxd4 {[%clk 0:41:39]} 30... Ne6 {[%clk 0:46:58]} 31. Rc4 {[%clk
0:41:01]} 31... Rb7 {[%clk 0:46:48]} 32. a4 {[%clk 0:41:09]} 32... Rb3 {[%clk
0:46:47]} 33. Nc2 {[%clk 0:40:19]} 33... Rb2 {[%clk 0:46:51]} 34. h4 {[%clk
0:39:38]} 34... Ra2 {[%clk 0:44:52]} 35. Kf1 {[%clk 0:37:00]} 35... Nf8 {[%clk
0:45:16]} 36. Nd4 {[%clk 0:35:33]} 36... Nd7 {[%clk 0:44:46]} 37. Rc7 {[%clk
0:34:22]} 37... Ne5 {[%clk 0:44:53]} 38. Ra7 {[%clk 0:27:38]} 38... Kg6 {[%clk
0:40:46]} 39. h5+ {[%clk 0:25:14]} 39... Kf6 {[%clk 0:33:53]} 40. Ra6+ {[%clk
0:56:17]} 40... Ke7 {[%clk 1:04:18]} 41. Nf5+ {[%clk 0:56:23]} 41... Kd7 {[%clk
0:59:20]} 42. Rd6+ {[%clk 0:56:08]} 42... Kc7 {[%clk 0:59:15]} 43. Rd4 {[%clk
0:56:26]} 43... g6 {[%clk 0:57:51]} 44. hxg6 {[%clk 0:56:17]} 44... fxg6 {[%clk
0:58:15]} 45. Nxh6 {[%clk 0:56:24]} 45... Nf3 {[%clk 0:55:58]} 46. Rf4 {[%clk
0:56:21]} 46... Ra1+ {[%clk 0:56:22]} 47. Kg2 {[%clk 0:53:08]} 47... Ne1+ {[%clk
0:56:16]} 48. Kh3 {[%clk 0:51:57]} 48... Nd3 {[%clk 0:51:53]} 49. Rc4+ {[%clk
0:51:22]} 49... Kb6 {[%clk 0:51:01]} 50. Ng4 {[%clk 0:51:25]} 50... g5 {[%clk
0:51:07]} 51. Kg2 {[%clk 0:46:53]} 51... Ne1+ {[%clk 0:46:50]} 52. Kf1 {[%clk
0:47:11]} 52... Nd3+ {[%clk 0:46:59]} 53. Ke2 {[%clk 0:47:19]} 53... Nc5 {[%clk
0:47:08]} 54. Ne5 {[%clk 0:46:49]} 54... Nxa4 {[%clk 0:45:47]} 55. Kf3 {[%clk
0:40:40]} 55... Nc5 {[%clk 0:43:53]} 56. Kg4 {[%clk 0:40:09]} 56... Ra2 {[%clk
0:42:38]} 57. Kxg5 {[%clk 0:38:41]} 57... Kb5 {[%clk 0:42:17]} 58. f4 {[%clk
0:35:58]} 58... Re2 {[%clk 0:34:33]} 59. Rc1 {[%clk 0:30:31]} 59... Ne4+ {[%clk
0:32:39]} 60. Kh4 {[%clk 0:30:54]} 60... Rg2 {[%clk 0:30:42]} 61. Re1 {[%clk
0:30:55]} 61... Nd6 {[%clk 0:30:04]} 62. g4 {[%clk 0:31:03]} 62... Kc5 {[%clk
0:30:06]} 63. f5 {[%clk 0:30:18]} 63... Kd5 {[%clk 0:29:47]} 64. Ng6 {[%clk
0:30:15]} 64... Rh2+ {[%clk 0:27:36]} 65. Kg3 {[%clk 0:30:35]} 65... Rd2 {[%clk
0:27:35]} 66. Nf4+ {[%clk 0:25:42]} 66... Kd4 {[%clk 0:27:04]} 67. f6 {[%clk
0:25:55]} 67... Ra2 {[%clk 0:22:12]} 68. Rd1+ {[%clk 0:25:17]} 68... Kc5 {[%clk
0:22:26]} 69. Ne6+ {[%clk 0:25:44]} 1-0

[Variant "Standard"]
[Site "Europe Echecs"]

[Event "Sunway Sitges Chess Festival"]
[Date "2024.12.21"]
[White "Filgueiras, Nathan Felipe"]
[Black "Aarav A"]
[WhiteElo "2328"]
[BlackElo "2186"]
[Round "9.26"]
[Result "1/2-1/2"]
[TimeControl "40/5400+30:1800+30"]

1. e4 {[%clk 1:30:29]} 1... c5 {[%clk 1:30:13]} 2. Nf3 d6 {[%clk 1:30:25]} 3. d4
{[%clk 1:31:45]} 3... cxd4 {[%clk 1:30:40]} 4. Nxd4 {[%clk 1:32:11]} 4... Nf6
{[%clk 1:30:57]} 5. Nc3 {[%clk 1:32:37]} 5... Nc6 {[%clk 1:31:14]} 6. Bb5 {[%clk
1:32:29]} 6... Bd7 {[%clk 1:31:33]} 7. Be3 {[%clk 1:32:15]} 7... g6 {[%clk
1:31:13]} 8. f3 {[%clk 1:33:31]} 8... a6 {[%clk 1:28:59]} 9. Be2 {[%clk
1:33:00]} 9... Nxd4 {[%clk 1:26:40]} 10. Bxd4 {[%clk 1:32:43]} 10... Bh6 {[%clk
1:19:36]} 11. Qd3 {[%clk 1:27:30]} 11... O-O {[%clk 1:18:05]} 12. O-O {[%clk
1:21:38]} 12... Qa5 {[%clk 1:16:49]} 13. f4 {[%clk 1:16:43]} 13... Rac8 {[%clk
1:04:07]} 14. Kh1 {[%clk 1:16:43]} 14... Bg7 {[%clk 1:17:56]} 15. a3 {[%clk
1:16:43]} 15... Qc7 {[%clk 1:17:56]} 16. Rad1 {[%clk 1:16:43]} 16... Rfe8 {[%clk
1:17:56]} 17. h3 {[%clk 1:16:43]} 17... b5 {[%clk 1:17:56]} 18. Rd2 {[%clk
1:16:43]} 18... Bc6 {[%clk 1:17:56]} 19. Bf3 {[%clk 1:16:43]} 19... Qb7 {[%clk
1:17:56]} 20. e5 {[%clk 1:16:43]} 20... dxe5 {[%clk 1:17:56]} 21. fxe5 {[%clk
1:16:43]} 21... Nd5 {[%clk 1:17:56]} 22. e6 {[%clk 1:16:43]} 22... f6 {[%clk
1:17:56]} 23. Nxd5 {[%clk 1:16:43]} 23... Bxd5 {[%clk 1:17:56]} 24. Bxd5 {[%clk
1:16:43]} 24... Qxd5 {[%clk 1:17:56]} 25. Qe2 {[%clk 1:16:43]} 25... Qc4 {[%clk
1:17:56]} 26. Re1 {[%clk 1:16:43]} 26... Qxe2 {[%clk 1:17:56]} 27. Rexe2 {[%clk
1:16:43]} 27... f5 {[%clk 1:17:56]} 28. g4 {[%clk 1:16:43]} 28... Bxd4 {[%clk
1:17:56]} 29. Rxd4 {[%clk 1:16:43]} 29... Rc5 {[%clk 1:17:56]} 30. Kg2 {[%clk
1:16:43]} 30... Kg7 {[%clk 1:17:56]} 31. gxf5 {[%clk 1:16:43]} 31... Rxf5 {[%clk
1:17:56]} 32. Rd7 {[%clk 1:16:43]} 32... a5 {[%clk 1:17:56]} 33. Rb7 {[%clk
1:16:43]} 33... Kf6 {[%clk 1:17:56]} 34. Rf2 {[%clk 1:16:43]} 34... Rc8 {[%clk
1:17:56]} 35. Rxb5 {[%clk 1:16:43]} 35... Rxf2+ {[%clk 1:17:56]} 36. Kxf2 {[%clk
1:16:43]} 36... Rxc2+ {[%clk 1:17:56]} 37. Kf3 {[%clk 1:16:43]} 37... Kxe6
{[%clk 1:17:56]} 38. h4 {[%clk 1:16:43]} 38... a4 {[%clk 1:17:56]} 39. Kg4
{[%clk 1:16:43]} 39... Kf6 {[%clk 1:17:56]} 40. h5 {[%clk 1:16:43]} 40... gxh5+
{[%clk 1:17:56]} 41. Rxh5 {[%clk 1:16:43]} 41... Rxb2 {[%clk 1:17:56]} 42. Ra5
{[%clk 1:16:43]} 42... Rg2+ {[%clk 1:17:56]} 43. Kf3 {[%clk 1:16:43]} 43... Ra2
{[%clk 1:17:56]} 44. Rxa4 {[%clk 1:16:43]} 44... h5 {[%clk 1:17:56]} 45. Ra8
{[%clk 1:16:43]} 45... e5 {[%clk 1:17:56]} 46. a4 {[%clk 1:16:43]} 46... Kf5
{[%clk 1:17:56]} 47. Rf8+ {[%clk 1:16:43]} 47... Kg5 {[%clk 1:17:56]} 48. Rg8+
{[%clk 1:16:43]} 48... Kh4 {[%clk 1:17:56]} 49. Re8 {[%clk 1:16:43]} 49... Ra3+
{[%clk 1:17:56]} 50. Kf2 {[%clk 1:16:43]} 50... Rxa4 {[%clk 1:17:56]} 51. Rxe5
{[%clk 1:16:43]} 51... Rg4 {[%clk 1:17:56]} 52. Ra5 {[%clk 1:16:43]} 52... Rg5
{[%clk 1:17:56]} 53. Rxg5 {[%clk 1:16:43]} 53... Kxg5 {[%clk 1:17:56]} 54. Kg2
{[%clk 1:16:43]} 54... Kg4 {[%clk 1:17:56]} 55. Kh1 {[%clk 1:16:43]} 55... h4
{[%clk 1:17:56]} 56. Kg1 {[%clk 1:16:43]} 56... Kg3 {[%clk 1:17:56]} 57. Kh1
{[%clk 1:16:43]} 57... Kh3 {[%clk 1:17:56]} 58. Kg1 {[%clk 1:16:43]} 58... Kg3
{[%clk 1:17:56]} 59. Kh1 {[%clk 1:16:43]} 59... h3 {[%clk 1:17:56]} 60. Kg1
{[%clk 1:16:43]} 60... h2+ {[%clk 1:17:56]} 61. Kh1 {[%clk 1:16:43]} 61... Kh3
{[%clk 1:17:56]} 1/2-1/2

[Variant "Standard"]
[Site "Europe Echecs"]

[Event "Sunway Sitges Chess Festival"]
[Date "2024.12.21"]
[White "Lacasa Diaz, Josep Anton"]
[Black "Koudounis, Vasileios"]
[WhiteElo "2324"]
[BlackElo "2190"]
[Round "9.27"]
[Result "1-0"]
[TimeControl "40/5400+30:1800+30"]

1. Nf3 e6 2. c4 d5 3. e3 Nf6 4. Nc3 b6 5. b3 Bb7 6. Bb2 Nbd7 7. Rc1 a6 8. cxd5
exd5 9. Ne2 Bd6 10. g3 O-O 11. Bg2 Qe7 12. O-O c5 13. d4 Rac8 14. Nf4 g6 15.
dxc5 bxc5 16. Ne1 Be5 17. Ba3 Nb6 {[%clk 0:33:05]} 18. Ned3 {[%clk 0:59:04]}
18... Bxf4 {[%clk 0:24:42]} 19. exf4 {[%clk 0:53:33]} 19... Nbd7 {[%clk
0:24:22]} 20. Re1 {[%clk 0:49:42]} 20... Qd6 {[%clk 0:23:25]} 21. Qc2 {[%clk
0:39:32]} 21... Rc7 {[%clk 0:22:54]} 22. Bxc5 {[%clk 0:28:01]} 22... Nxc5 {[%clk
0:21:07]} 23. Nxc5 {[%clk 0:27:52]} 23... Rfc8 {[%clk 0:19:54]} 24. b4 {[%clk
0:27:55]} 24... Nd7 {[%clk 0:19:00]} 25. Qb2 {[%clk 0:27:29]} 25... Nxc5 {[%clk
0:18:23]} 26. bxc5 {[%clk 0:26:52]} 26... Qd7 {[%clk 0:18:33]} 27. Qd4 {[%clk
0:25:35]} 27... Qb5 {[%clk 0:15:02]} 28. Bh3 {[%clk 0:16:25]} 28... Re8 {[%clk
0:14:21]} 29. Rxe8+ {[%clk 0:15:45]} 29... Qxe8 {[%clk 0:14:48]} 30. Bg2 {[%clk
0:15:54]} 30... Qb5 {[%clk 0:10:01]} 31. h4 {[%clk 0:15:32]} 31... Re7 {[%clk
0:08:56]} 32. Bf3 {[%clk 0:15:13]} 32... h5 {[%clk 0:07:20]} 33. f5 {[%clk
0:14:55]} 33... Qd7 {[%clk 0:07:36]} 34. fxg6 {[%clk 0:13:27]} 34... fxg6 {[%clk
0:08:03]} 35. c6 {[%clk 0:12:31]} 1-0

[Variant "Standard"]
[Site "Europe Echecs"]

[Event "Sunway Sitges Chess Festival"]
[Date "2024.12.21"]
[White "Grebennikov, Nikolai A."]
[Black "Safarov, Deniel"]
[WhiteElo "2194"]
[BlackElo "2319"]
[Round "9.28"]
[Result "0-1"]
[TimeControl "40/5400+30:1800+30"]

1. d4 {[%clk 1:23:44]} 1... g6 {[%clk 1:30:50]} 2. e4 {[%clk 1:23:52]} 2... Bg7
{[%clk 1:31:14]} 3. c4 {[%clk 1:23:27]} 3... d6 {[%clk 1:31:38]} 4. Nc3 {[%clk
1:23:25]} 4... Nf6 {[%clk 1:31:55]} 5. Nf3 {[%clk 1:23:40]} 5... O-O {[%clk
1:32:20]} 6. Be2 {[%clk 1:23:06]} 6... e5 {[%clk 1:32:35]} 7. d5 {[%clk
1:22:06]} 7... a5 {[%clk 1:32:55]} 8. Be3 {[%clk 1:22:14]} 8... Na6 {[%clk
1:33:09]} 9. Nd2 {[%clk 1:22:32]} 9... Nd7 {[%clk 1:32:49]} 10. g4 {[%clk
1:22:55]} 10... Ndc5 {[%clk 1:32:10]} 11. h4 {[%clk 1:19:13]} 11... f5 {[%clk
1:31:22]} 12. gxf5 {[%clk 1:08:01]} 12... gxf5 {[%clk 1:31:44]} 13. Bg5 {[%clk
1:06:30]} 13... Qd7 {[%clk 1:28:40]} 14. Rg1 {[%clk 0:54:22]} 14... Kh8 {[%clk
1:28:36]} 15. h5 {[%clk 0:52:56]} 15... h6 {[%clk 1:24:24]} 16. Be3 {[%clk
0:50:54]} 16... f4 {[%clk 1:15:28]} 17. Bxc5 {[%clk 0:50:46]} 17... Nxc5 {[%clk
1:14:28]} 18. Bg4 {[%clk 0:40:53]} 18... Qf7 {[%clk 1:06:36]} 19. Nf3 {[%clk
0:37:15]} 19... Bxg4 {[%clk 1:02:12]} 20. Rxg4 {[%clk 0:37:43]} 20... Bf6 {[%clk
1:01:34]} 21. Rg6 {[%clk 0:28:43]} 21... Kh7 {[%clk 0:57:50]} 22. Ke2 {[%clk
0:27:28]} 22... Rg8 {[%clk 0:52:55]} 23. Rxg8 {[%clk 0:25:31]} 23... Rxg8 {[%clk
0:52:32]} 24. Qh1 {[%clk 0:25:59]} 24... Bd8 {[%clk 0:50:59]} 25. Rg1 {[%clk
0:25:22]} 25... Rxg1 {[%clk 0:50:00]} 26. Nxg1 {[%clk 0:25:50]} 26... Qg7 {[%clk
0:50:29]} 27. Nh3 {[%clk 0:18:26]} 27... Nd7 {[%clk 0:48:27]} 28. a3 {[%clk
0:09:31]} 28... Nf6 {[%clk 0:44:57]} 29. Qf3 {[%clk 0:08:06]} 29... c6 {[%clk
0:43:26]} 30. b4 {[%clk 0:06:23]} 30... axb4 {[%clk 0:41:52]} 31. axb4 {[%clk
0:06:51]} 31... Bb6 {[%clk 0:42:21]} 32. b5 {[%clk 0:04:17]} 32... Qd7 {[%clk
0:35:20]} 33. bxc6 {[%clk 0:03:28]} 33... bxc6 {[%clk 0:35:45]} 34. dxc6 {[%clk
0:02:31]} 34... Qxc6 {[%clk 0:36:08]} 35. Qd3 {[%clk 0:02:43]} 35... Bd4 {[%clk
0:28:54]} 36. Nd5 {[%clk 0:02:28]} 36... Nxh5 {[%clk 0:27:09]} 37. Nhxf4 {[%clk
0:02:57]} 37... Nxf4+ {[%clk 0:26:51]} 38. Nxf4 {[%clk 0:03:22]} 38... Qb6
{[%clk 0:27:13]} 39. Nh3 {[%clk 0:01:32]} 39... Qb2+ {[%clk 0:27:32]} 40. Kf3
{[%clk 0:31:04]} 40... Qc1 {[%clk 0:56:44]} 41. Kg2 {[%clk 0:30:12]} 41... Kg6
{[%clk 0:55:31]} 42. Qg3+ {[%clk 0:26:46]} 42... Kf7 {[%clk 0:54:53]} 43. Qf3+
{[%clk 0:26:19]} 43... Ke7 {[%clk 0:53:57]} 44. Qb3 {[%clk 0:22:47]} 44... Bc5
{[%clk 0:52:14]} 45. Qb7+ {[%clk 0:22:52]} 45... Kd8 {[%clk 0:52:09]} 46. Qd5
{[%clk 0:21:22]} 46... Kc7 {[%clk 0:52:21]} 47. Kg3 {[%clk 0:20:36]} 47... Kb6
{[%clk 0:51:47]} 48. Qd3 {[%clk 0:17:02]} 48... Bd4 {[%clk 0:50:04]} 49. Qb3+
{[%clk 0:17:17]} 49... Kc7 {[%clk 0:50:33]} 50. Kg4 {[%clk 0:16:47]} 50... Bxf2
{[%clk 0:50:04]} 51. Kf5 {[%clk 0:17:16]} 51... Bh4 {[%clk 0:47:14]} 52. Qd3
{[%clk 0:14:13]} 52... Kd7 {[%clk 0:45:47]} 53. Kg6 {[%clk 0:14:04]} 53... Bd8
{[%clk 0:29:49]} 54. Kf7 {[%clk 0:12:48]} 54... Bb6 {[%clk 0:28:56]} 55. Qe2
{[%clk 0:12:15]} 55... Kc6 {[%clk 0:24:16]} 56. Qd3 {[%clk 0:11:48]} 56... Qe3
{[%clk 0:23:18]} 57. Qd5+ {[%clk 0:11:51]} 57... Kc7 {[%clk 0:23:15]} 58. Ke7
{[%clk 0:08:10]} 58... Bc5 {[%clk 0:12:04]} 59. Qe6 {[%clk 0:07:29]} 59... Kb6
{[%clk 0:05:38]} 60. Qd7 {[%clk 0:04:33]} 60... d5+ {[%clk 0:05:50]} 61. Kd8
{[%clk 0:03:59]} 61... dxc4 {[%clk 0:05:32]} 62. Kc8 {[%clk 0:02:17]} 62... Qxe4
{[%clk 0:05:19]} 63. Qc7+ {[%clk 0:01:32]} 63... Kb5 {[%clk 0:05:35]} 64. Qb8+
{[%clk 0:01:31]} 64... Bb6 {[%clk 0:05:57]} 0-1

[Variant "Standard"]
[Site "Europe Echecs"]

[Event "Sunway Sitges Chess Festival"]
[Date "2024.12.21"]
[White "Domingo Nunez, Alejandro"]
[Black "Ibrahimova, Sabina"]
[WhiteElo "2318"]
[BlackElo "2179"]
[Round "9.29"]
[Result "1/2-1/2"]
[TimeControl "40/5400+30:1800+30"]

1. Nf3 {[%clk 1:30:56]} 1... Nf6 {[%clk 1:23:47]} 2. g3 {[%clk 1:31:02]} 2... g6
{[%clk 1:23:40]} 3. b3 {[%clk 1:31:27]} 3... Bg7 {[%clk 1:23:57]} 4. Bb2 {[%clk
1:31:53]} 4... d6 {[%clk 1:22:18]} 5. d4 {[%clk 1:32:19]} 5... c5 {[%clk
1:22:13]} 6. Bg2 {[%clk 1:32:43]} 6... Qa5+ {[%clk 1:20:34]} 7. Bc3 {[%clk
1:33:05]} 7... Qc7 {[%clk 1:19:35]} 8. O-O {[%clk 1:27:21]} 8... O-O {[%clk
1:15:24]} 9. Bb2 {[%clk 1:11:22]} 9... d5 {[%clk 1:08:42]} 10. Nc3 {[%clk
1:01:57]} 10... Nbd7 {[%clk 0:59:37]} 11. e3 {[%clk 0:52:54]} 11... a6 {[%clk
0:55:18]} 12. Nd2 {[%clk 0:47:54]} 12... e6 {[%clk 0:43:22]} 13. Ne2 {[%clk
0:47:42]} 13... b5 {[%clk 0:38:51]} 14. c4 {[%clk 0:47:00]} 14... Bb7 {[%clk
0:31:16]} 15. cxd5 {[%clk 0:25:21]} 15... Nxd5 {[%clk 0:29:38]} 16. Ne4 {[%clk
0:24:55]} 16... cxd4 {[%clk 0:27:13]} 17. Bxd4 {[%clk 0:25:12]} 17... e5 {[%clk
0:25:14]} 18. Rc1 {[%clk 0:24:04]} 18... Qb8 {[%clk 0:24:20]} 19. Bb2 {[%clk
0:15:01]} 19... Rd8 {[%clk 0:21:07]} 20. Qe1 {[%clk 0:07:59]} 20... a5 {[%clk
0:17:45]} 21. N2c3 {[%clk 0:07:26]} 21... Nxc3 {[%clk 0:13:03]} 22. Qxc3 {[%clk
0:07:51]} 22... Nf6 {[%clk 0:09:23]} 23. Nxf6+ {[%clk 0:06:22]} 23... Bxf6
{[%clk 0:09:48]} 24. Bxb7 {[%clk 0:03:01]} 24... Qxb7 {[%clk 0:10:13]} 25. Qc6
{[%clk 0:02:16]} 25... Qxc6 {[%clk 0:07:43]} 26. Rxc6 {[%clk 0:02:45]} 26... Bg7
{[%clk 0:07:53]} 27. Rfc1 {[%clk 0:00:41]} 27... e4 {[%clk 0:06:14]} 28. Bxg7
{[%clk 0:00:34]} 28... Kxg7 {[%clk 0:06:40]} 29. R1c5 {[%clk 0:00:51]} 29... Rd2
{[%clk 0:04:49]} 30. Rxb5 {[%clk 0:01:06]} 30... a4 {[%clk 0:01:59]} 31. a3
{[%clk 0:01:02]} 31... axb3 {[%clk 0:02:00]} 32. Rxb3 {[%clk 0:01:30]} 32... Ra5
{[%clk 0:02:08]} 33. Rc1 {[%clk 0:00:40]} 33... Rf5 {[%clk 0:01:44]} 34. Rf1
{[%clk 0:01:06]} 34... Ra2 {[%clk 4:04:14]} 35. Rb4 {[%clk 0:01:29]} 35... Re5
{[%clk 0:00:58]} 36. a4 {[%clk 0:01:54]} 36... h5 {[%clk 0:00:50]} 37. h3 {[%clk
0:01:16]} 37... Re7 {[%clk 0:00:40]} 38. Rc1 {[%clk 0:01:23]} 38... Re6 {[%clk
0:00:54]} 39. Rcb1 {[%clk 0:00:34]} 39... Re5 {[%clk 0:00:37]} 40. R1b2 {[%clk
0:30:46]} 40... Ra1+ {[%clk 0:30:44]} 41. Kg2 {[%clk 0:31:11]} 41... Re6 {[%clk
0:23:57]} 42. Rd4 {[%clk 0:31:28]} 42... f5 {[%clk 0:22:48]} 43. g4 {[%clk
0:20:49]} 43... hxg4 {[%clk 0:18:44]} 44. hxg4 {[%clk 0:19:19]} 44... Kf6 {[%clk
0:19:08]} 45. Rb5 {[%clk 0:07:32]} 45... Kg5 {[%clk 0:15:58]} 46. gxf5 {[%clk
0:07:11]} 46... gxf5 {[%clk 0:16:24]} 47. Rdd5 {[%clk 0:06:48]} 47... Rf6 {[%clk
0:15:44]} 48. a5 {[%clk 0:07:14]} 48... Kg4 {[%clk 0:12:35]} 49. Re5 {[%clk
0:06:45]} 49... Ra2 {[%clk 0:09:25]} 50. Red5 {[%clk 0:03:09]} 50... Ra1 {[%clk
0:09:17]} 51. Rd8 {[%clk 0:02:01]} 51... Rg6 {[%clk 0:06:00]} 52. Rf8 {[%clk
0:02:05]} 52... Rg5 {[%clk 0:03:43]} 53. Re5 {[%clk 0:00:40]} 53... Kh4+ {[%clk
0:02:35]} 54. Kh2 {[%clk 0:01:06]} 54... Kg4 {[%clk 0:02:58]} 55. Kg2 {[%clk
0:00:40]} 55... Kh4+ {[%clk 0:03:23]} 56. Kh2 {[%clk 0:01:08]} 56... Kg4 {[%clk
0:03:49]} 57. Rc5 {[%clk 0:00:47]} 57... Ra2 {[%clk 0:02:43]} 58. Kg2 {[%clk
0:01:09]} 58... Kh4+ {[%clk 0:02:48]} 59. Kf1 {[%clk 0:01:24]} 59... Ra1+ {[%clk
0:03:13]} 60. Ke2 {[%clk 0:01:47]} 60... Ra2+ {[%clk 0:03:39]} 61. Kf1 {[%clk
0:02:09]} 61... Ra1+ {[%clk 0:03:42]} 62. Ke2 {[%clk 0:02:31]} 1/2-1/2

[Variant "Standard"]
[Site "Europe Echecs"]

[Event "Sunway Sitges Chess Festival"]
[Date "2024.12.21"]
[White "Karimov, Alisher"]
[Black "Kuandykuly, Danis"]
[WhiteElo "2296"]
[BlackElo "2168"]
[Round "9.30"]
[Result "1-0"]
[TimeControl "40/5400+30:1800+30"]

1. d4 {[%clk 1:30:57]} 1... Nf6 {[%clk 1:22:40]} 2. c4 {[%clk 1:31:18]} 2... e6
{[%clk 1:23:07]} 3. Nc3 {[%clk 1:31:13]} 3... Bb4 {[%clk 1:23:33]} 4. e3 {[%clk
1:31:35]} 4... O-O {[%clk 1:23:56]} 5. Bd3 {[%clk 1:32:00]} 5... d5 {[%clk
1:24:23]} 6. a3 {[%clk 1:31:34]} 6... Bxc3+ {[%clk 1:24:40]} 7. bxc3 {[%clk
1:31:56]} 7... dxc4 {[%clk 1:24:34]} 8. Bxc4 {[%clk 1:32:19]} 8... c5 {[%clk
1:25:02]} 9. Ne2 {[%clk 1:32:29]} 9... Qc7 {[%clk 1:25:23]} 10. Bd3 {[%clk
1:32:53]} 10... Nc6 {[%clk 1:25:35]} 11. f4 {[%clk 1:33:10]} 11... b6 {[%clk
1:21:01]} 12. O-O {[%clk 1:33:17]} 12... Bb7 {[%clk 1:19:41]} 13. Ng3 {[%clk
1:27:34]} 13... Rfd8 {[%clk 1:14:00]} 14. Bb2 {[%clk 1:24:29]} 14... Rac8 {[%clk
1:02:11]} 15. Qe2 {[%clk 1:22:12]} 15... Na5 {[%clk 1:01:14]} 16. Rae1 {[%clk
1:16:15]} 16... cxd4 {[%clk 0:49:28]} 17. cxd4 {[%clk 1:14:45]} 17... Bd5 {[%clk
0:46:49]} 18. e4 {[%clk 1:04:12]} 18... Bc4 {[%clk 0:46:40]} 19. d5 {[%clk
0:54:25]} 19... Bxd3 {[%clk 0:43:28]} 20. Qxd3 {[%clk 0:54:14]} 20... Ne8 {[%clk
0:43:19]} 21. Rc1 {[%clk 0:47:12]} 21... Nc4 {[%clk 0:42:00]} 22. Bd4 {[%clk
0:44:33]} 22... exd5 {[%clk 0:39:17]} 23. e5 {[%clk 0:44:53]} 23... Qe7 {[%clk
0:35:12]} 24. Nf5 {[%clk 0:42:24]} 24... Qe6 {[%clk 0:32:08]} 25. Rce1 {[%clk
0:42:17]} 25... Nd2 {[%clk 0:24:57]} 26. Nxg7 {[%clk 0:27:18]} 26... Nxg7 {[%clk
0:25:21]} 27. f5 {[%clk 0:26:04]} 27... Nxf5 {[%clk 0:23:31]} 28. Qxd2 {[%clk
0:18:43]} 28... Qg6 {[%clk 0:20:43]} 29. Rf3 {[%clk 0:16:25]} 29... Rc4 {[%clk
0:18:13]} 30. Qf2 {[%clk 0:14:13]} 30... Rxd4 {[%clk 0:13:01]} 31. Rxf5 {[%clk
0:14:37]} 31... Rd2 {[%clk 0:13:03]} 32. Qf3 {[%clk 0:14:39]} 32... h5 {[%clk
0:09:12]} 33. h4 {[%clk 0:13:46]} 33... Qe6 {[%clk 0:01:31]} 34. Qf4 {[%clk
0:12:34]} 34... Rc2 {[%clk 0:00:33]} 35. Qg5+ {[%clk 0:12:27]} 35... Kh7 {[%clk
0:01:02]} 36. Rf6 {[%clk 0:12:27]} 36... Qg4 {[%clk 0:01:04]} 37. Rh6# {[%clk
0:12:48]} 1-0

[Variant "Standard"]
[Site "Europe Echecs"]